bitfinex/quotes_BTCUSD_20241123
["timestamp","ask_amount","ask_price","bid_price","bid_amount"]
[1732393447436,0.0016788,97295.0,97294.0,0.55479527]
[1732393447565,0.0016788,97295.0,97294.0,0.55579527]
[1732393448380,8e-07,97295.0,97294.0,0.75679527]
[1732393448692,0.001718,97314.0,97313.0,0.102761]
[1732393449262,0.001718,97314.0,97313.0,0.24047698]
[1732393449484,0.001718,97314.0,97313.0,0.102761]
[1732393449703,0.001718,97314.0,97313.0,0.24047698]
[1732393450787,0.001718,97314.0,97313.0,0.39047698]
[1732393451725,0.001718,97314.0,97313.0,0.252761]
[1732393452124,0.001718,97314.0,97313.0,0.39047698]
[1732393452509,0.001718,97314.0,97313.0,0.252761]
[1732393453024,0.001718,97314.0,97313.0,0.39047698]
[1732393453337,0.001718,97314.0,97313.0,0.252761]
[1732393453544,0.001718,97314.0,97313.0,0.39043132]
[1732393454014,0.001718,97314.0,97313.0,0.39043576]
[1732393454610,0.001718,97314.0,97313.0,0.252761]
[1732393455227,0.001718,97314.0,97313.0,0.39045282]
[1732393455453,0.001718,97314.0,97313.0,0.252761]
[1732393456151,0.001718,97314.0,97313.0,0.39045282]
[1732393456645,0.001718,97314.0,97313.0,0.252761]
[1732393457615,0.001718,97314.0,97313.0,0.29538822]
[1732393458732,0.001718,97314.0,97313.0,0.52484616]
[1732393458904,0.001718,97314.0,97313.0,0.29538822]
[1732393459145,0.001718,97314.0,97313.0,0.52481572]
[1732393459374,0.309998,97314.0,97313.0,0.52481572]
[1732393459702,0.309998,97314.0,97313.0,0.29538822]
[1732393459915,0.26383056,97314.0,97313.0,0.29538822]
[1732393460747,0.26383056,97314.0,97313.0,0.4789834]
[1732393460947,0.26383056,97314.0,97313.0,0.29538822]
[1732393461235,0.26383056,97314.0,97313.0,0.4789834]
[1732393462304,0.26383056,97314.0,97313.0,0.29538822]
[1732393463123,0.26554696,97314.0,97313.0,0.29538822]
[1732393464635,0.26554696,97314.0,97313.0,0.52482969]
[1732393465292,0.26554696,97314.0,97313.0,0.29538822]
[1732393467400,0.27227181,97314.0,97313.0,0.29538822]
[1732393473510,0.27227181,97314.0,97313.0,0.3272542]
[1732393473722,0.26554696,97314.0,97313.0,0.29538822]
[1732393473913,0.27227181,97314.0,97313.0,0.29538822]
[1732393474344,0.27227181,97314.0,97313.0,0.32725662]
[1732393474668,0.27227181,97314.0,97313.0,0.29538822]
[1732393474921,0.22610309,97314.0,97313.0,0.57170939]
[1732393475761,0.22610309,97314.0,97313.0,0.29538822]
[1732393477267,0.22389508,97314.0,97313.0,0.29538822]
[1732393479088,0.21937824,97314.0,97313.0,0.29538822]
[1732393482179,0.21937824,97314.0,97309.0,0.15]
[1732393482357,0.21937824,97314.0,97313.0,0.102761]
[1732393484290,0.21937824,97314.0,97313.0,0.252761]
[1732393487188,0.21937824,97314.0,97313.0,0.2536191]
[1732393487969,0.34357824,97314.0,97313.0,0.2536191]
[1732393488178,0.44559251,97314.0,97313.0,0.0008581]
[1732393488415,0.46859251,97314.0,97313.0,0.0008581]
[1732393488654,0.57135251,97314.0,97313.0,0.13923979]
[1732393488929,0.57135251,97314.0,97313.0,0.0008581]
[1732393488930,0.46859251,97314.0,97313.0,0.0008581]
[1732393489193,0.023,97313.0,97310.0,0.09225825]
[1732393489461,0.125766,97308.0,97307.0,0.09225825]
[1732393489663,0.125766,97308.0,97306.0,0.0008581]
[1732393489664,0.1472,97307.0,97306.0,0.09311635]
[1732393489872,0.24921427,97307.0,97306.0,0.0008581]
[1732393490291,0.46687611,97307.0,97306.0,0.0008581]
[1732393490593,0.56964311,97307.0,97306.0,0.0008581]
[1732393490798,0.46687611,97307.0,97306.0,0.0008581]
[1732393491033,0.56964311,97307.0,97306.0,0.0008581]
[1732393491236,0.56964311,97307.0,97295.0,0.09220792]
[1732393491237,0.1206,97298.0,97295.0,0.09220792]
[1732393491469,0.10201427,97297.0,97289.0,0.09306612]
[1732393491676,0.0751,97294.0,97290.0,0.09220792]
[1732393491886,0.1206,97292.0,97289.0,0.1036442]
[1732393492060,0.1206,97290.0,97289.0,0.1036442]
[1732393492275,0.22261427,97290.0,97289.0,0.1036442]
[1732393492725,0.22261427,97290.0,97289.0,0.19569442]
[1732393493091,0.22261427,97290.0,97289.0,0.1036442]
[1732393493468,0.22261427,97290.0,97289.0,0.19565477]
[1732393493657,0.22261427,97290.0,97289.0,0.1036442]
[1732393493847,0.22261427,97290.0,97289.0,0.0008582]
[1732393494329,0.22261427,97290.0,97289.0,0.1036442]
[1732393500702,0.22261427,97290.0,97289.0,0.0008582]
[1732393500916,0.32539927,97290.0,97289.0,0.0008582]
[1732393503493,0.22261427,97290.0,97289.0,0.0008582]
[1732393504458,0.22261427,97290.0,97289.0,0.1036442]
[1732393515572,0.22261427,97290.0,97289.0,0.0008582]
[1732393515815,0.32539927,97290.0,97289.0,0.0008582]
[1732393518039,0.54839927,97290.0,97289.0,0.0008582]
[1732393518859,0.228698,97278.0,97277.0,22.99405523]
[1732393519074,0.33071227,97278.0,97277.0,22.99405523]
[1732393520817,0.46124576,97278.0,97277.0,22.99405523]
[1732393521020,0.33071227,97278.0,97277.0,22.99405523]
[1732393522015,0.33071185,97278.0,97277.0,22.99405523]
[1732393527198,0.22791427,97278.0,97277.0,22.99405523]
[1732393527403,0.33071227,97278.0,97277.0,22.99405523]
[1732393527963,0.45802613,97278.0,97277.0,22.99405523]
[1732393530522,0.35371227,97278.0,97277.0,22.99405523]
[1732393532297,0.55371227,97278.0,97277.0,22.99405523]
[1732393534347,0.55542907,97278.0,97277.0,22.99405523]
[1732393539434,0.55542907,97278.0,97277.0,22.86595523]
[1732393540039,0.68072328,97278.0,97277.0,22.86595523]
[1732393540270,0.55542907,97278.0,97277.0,22.86595523]
[1732393540469,0.67970385,97278.0,97277.0,22.86595523]
[1732393540911,0.68170385,97278.0,97277.0,22.6419163]
[1732393541316,0.55742907,97278.0,97277.0,22.6419163]
[1732393541706,0.57658467,97278.0,97277.0,22.6419163]
[1732393541923,0.57458467,97278.0,97277.0,22.6419163]
[1732393542150,0.70752643,97278.0,97277.0,22.6419163]
[1732393542682,0.55542907,97278.0,97277.0,22.6419163]
[1732393542884,0.68876995,97278.0,97277.0,22.6419163]
[1732393543081,0.55542907,97278.0,97277.0,22.6419163]
[1732393543310,0.68547047,97278.0,97277.0,22.6419163]
[1732393543520,0.68747047,97278.0,97277.0,22.6419163]
[1732393543678,0.70662891,97278.0,97277.0,22.6419163]
[1732393544084,0.57658751,97278.0,97277.0,22.6419163]
[1732393544311,0.72658751,97278.0,97277.0,22.6419163]
[1732393544536,0.92658751,97278.0,97277.0,22.6419163]
[1732393544777,1.05062238,97278.0,97277.0,22.6419163]
[1732393545005,1.0780521,97278.0,97277.0,22.6419163]
[1732393545225,1.05062238,97278.0,97277.0,22.6419163]
[1732393545648,1.03146394,97278.0,97277.0,22.6419163]
[1732393546099,0.90742907,97278.0,97277.0,22.6419163]
[1732393551993,0.90742907,97278.0,97277.0,22.6319163]
[1732393553187,1.02636147,97278.0,97277.0,22.6319163]
[1732393554724,0.90742907,97278.0,97277.0,22.6319163]
[1732393556299,0.93513331,97278.0,97277.0,22.6319163]
[1732393556517,1.06284565,97278.0,97277.0,22.6319163]
[1732393557355,0.97828045,97278.0,97277.0,21.81176031]
[1732393557568,1.30834565,97278.0,97277.0,21.75008031]
[1732393558400,1.30834565,97278.0,97277.0,21.64728031]
[1732393558549,1.33618045,97278.0,97277.0,21.64728031]
[1732393559383,1.34518045,97278.0,97277.0,21.64728031]
[1732393560238,1.31734565,97278.0,97277.0,21.64728031]
[1732393560467,1.32634565,97278.0,97277.0,21.64728031]
[1732393560693,1.3631992,97278.0,97277.0,21.60616031]
[1732393560854,1.3631992,97278.0,97277.0,21.56504031]
[1732393561093,1.46706725,97278.0,97277.0,21.52193244]
[1732393561286,2.01046725,97278.0,97277.0,21.43969244]
[1732393561491,1.9065992,97278.0,97277.0,21.41913244]
[1732393561698,1.9983844,97278.0,97277.0,21.41913244]
[1732393562010,1.9065992,97278.0,97277.0,21.38192127]
[1732393562366,2.01327689,97278.0,97277.0,21.32024127]
[1732393562572,2.01327689,97278.0,97277.0,21.24568514]
[1732393562782,1.33549496,97278.0,97277.0,21.16249666]
[1732393562987,1.87889496,97278.0,97277.0,21.1417015]
[1732393563194,1.89795719,97278.0,97277.0,21.1417015]
[1732393563369,2.00182524,97278.0,97277.0,21.04249194]
[1732393563577,1.89795719,97278.0,97277.0,20.96025194]
[1732393563781,2.03566321,97278.0,97277.0,20.96025194]
[1732393563985,1.87010364,97278.0,97277.0,20.96025194]
[1732393564366,1.89795719,97278.0,97277.0,20.87801194]
[1732393564523,1.89795719,97278.0,97277.0,20.85745194]
[1732393565752,1.87010364,97278.0,97277.0,20.85745194]
[1732393565948,1.89795719,97278.0,97277.0,20.81633194]
[1732393566251,1.8594164,97278.0,97277.0,20.81633194]
[1732393566798,1.57964141,97278.0,97277.0,20.81633194]
[1732393567024,1.01324141,97278.0,97277.0,20.81633194]
[1732393567236,1.0351164,97278.0,97277.0,20.81633194]
[1732393567568,1.0261164,97278.0,97277.0,20.71353194]
[1732393567794,1.1160164,97278.0,97277.0,20.71353194]
[1732393568042,1.1250164,97278.0,97277.0,20.71353194]
[1732393568285,1.3070164,97278.0,97277.0,20.71353194]
[1732393568473,1.38972049,97278.0,97277.0,20.61073194]
[1732393568729,1.2980164,97278.0,97277.0,20.61073194]
[1732393568954,1.3966905,97278.0,97277.0,20.61073194]
[1732393569169,1.2980164,97278.0,97277.0,20.61073194]
[1732393569373,1.8414164,97278.0,97277.0,20.52849194]
[1732393569568,1.87826995,97278.0,97277.0,20.50793194]
[1732393569805,2.21460477,97278.0,97277.0,20.50793194]
[1732393570013,2.01375553,97278.0,97277.0,20.40475941]
[1732393570385,2.01575553,97278.0,97277.0,20.32122565]
[1732393570588,2.03282232,97278.0,97277.0,20.2593705]
[1732393570789,2.01575553,97278.0,97277.0,20.2593705]
[1732393570990,2.01375553,97278.0,97277.0,20.2593705]
[1732393571337,2.18868326,97278.0,97277.0,20.2593705]
[1732393571543,2.17968326,97278.0,97277.0,20.1565705]
[1732393571958,2.20779719,97278.0,97277.0,20.1565705]
[1732393572350,1.86953033,97278.0,97277.0,20.1360105]
[1732393572586,1.86953033,97278.0,97277.0,20.0743305]
[1732393572587,1.86053033,97278.0,97277.0,20.0743305]
[1732393572784,1.85153033,97278.0,97277.0,20.0537705]
[1732393572986,1.86953033,97278.0,97277.0,20.0537705]
[1732393573211,1.8504164,97278.0,97277.0,20.0537705]
[1732393573423,1.97885552,97278.0,97277.0,20.0126505]
[1732393573626,1.8504164,97278.0,97277.0,19.9509705]
[1732393574242,1.8414164,97278.0,97277.0,19.9509705]
[1732393574451,1.8414164,97278.0,97277.0,19.9304105]
[1732393574656,1.8324164,97278.0,97277.0,19.8892905]
[1732393575090,2.28729767,97278.0,97277.0,19.8481705]
[1732393575297,2.27829767,97278.0,97277.0,19.8481705]
[1732393575506,2.1885839,97278.0,97277.0,19.7453705]
[1732393576137,1.7385839,97278.0,97277.0,19.65871641]
[1732393576400,2.1885839,97278.0,97277.0,19.61759641]
[1732393576619,2.26403242,97278.0,97277.0,19.55591641]
[1732393577064,2.16016437,97278.0,97277.0,19.55591641]
[1732393577695,1.82199687,97278.0,97277.0,19.51479641]
[1732393577922,1.21922188,97278.0,97277.0,19.51479641]
[1732393578174,1.46922188,97278.0,97277.0,19.51479641]
[1732393578400,1.21922188,97278.0,97277.0,19.51479641]
[1732393578611,1.06922188,97278.0,97277.0,19.51479641]
[1732393578827,0.52582188,97278.0,97277.0,19.51479641]
[1732393579029,0.72582188,97278.0,97277.0,19.51479641]
[1732393579233,0.71682188,97278.0,97277.0,19.51479641]
[1732393579444,0.70582188,97278.0,97277.0,19.51479641]
[1732393579660,0.72582188,97278.0,97277.0,19.51479641]
[1732393579857,0.62652907,97278.0,97277.0,19.51479641]
[1732393580073,0.61752907,97278.0,97277.0,19.51479641]
[1732393580476,0.79052907,97278.0,97277.0,19.51479641]
[1732393580894,0.77952907,97278.0,97277.0,19.51479641]
[1732393581339,0.10373107,97278.0,97277.0,19.64029641]
[1732393581775,0.10373107,97278.0,97277.0,19.64129641]
[1732393582407,0.10373107,97278.0,97277.0,19.64029641]
[1732393582649,0.10201427,97278.0,97277.0,19.64129641]
[1732393583079,0.0108249,97278.0,97277.0,19.64029641]
[1732393583288,0.32728063,97300.0,97277.0,19.59059641]
[1732393583289,0.205561,97295.0,97277.0,19.59059641]
[1732393583503,0.12173063,97290.0,97280.0,0.0497]
[1732393583748,0.102787,97289.0,97280.0,0.0497]
[1732393584174,0.12173063,97290.0,97280.0,0.0497]
[1732393584389,0.102794,97281.0,97280.0,0.0497]
[1732393584600,0.20480827,97281.0,97280.0,0.0497]
[1732393586963,0.10201427,97281.0,97280.0,0.0497]
[1732393588203,0.10201427,97281.0,97280.0,0.0507]
[1732393588625,0.10201427,97281.0,97280.0,0.0497]
[1732393589073,0.10201427,97281.0,97280.0,0.0507]
[1732393589285,0.20480827,97281.0,97280.0,0.0507]
[1732393589508,0.20480827,97281.0,97280.0,0.0497]
[1732393590423,0.55480827,97281.0,97280.0,0.0497]
[1732393590629,0.304798,97278.0,97277.0,19.51479641]
[1732393590857,0.57981227,97278.0,97277.0,19.51479641]
[1732393591282,0.77981227,97278.0,97277.0,19.51479641]
[1732393592364,0.77981227,97278.0,97277.0,19.51579641]
[1732393592778,0.78152887,97278.0,97277.0,19.51479641]
[1732393593250,0.7812947,97278.0,97277.0,19.51579641]
[1732393593683,0.78114032,97278.0,97277.0,19.51579641]
[1732393594953,0.78114032,97278.0,97277.0,19.51479641]
[1732393595164,0.78114032,97278.0,97277.0,19.51579641]
[1732393595637,0.78114032,97278.0,97277.0,19.51479641]
[1732393596066,0.78114032,97278.0,97277.0,19.51579641]
[1732393596067,1.03114032,97278.0,97277.0,19.51579641]
[1732393596280,1.65164032,97278.0,97277.0,19.51579641]
[1732393596500,1.65164032,97278.0,97277.0,19.51479641]
[1732393596946,1.65164032,97278.0,97277.0,19.51579641]
[1732393597385,1.66064032,97278.0,97277.0,19.51579641]
[1732393597605,1.65164032,97278.0,97277.0,19.51579641]
[1732393598028,1.66064032,97278.0,97277.0,19.40851182]
[1732393598235,1.66964032,97278.0,97277.0,19.40851182]
[1732393598861,1.66064032,97278.0,97277.0,19.40851182]
[1732393599117,1.66964032,97278.0,97277.0,19.40851182]
[1732393600400,1.66964032,97278.0,97277.0,19.20830199]
[1732393600823,1.66964032,97278.0,97277.0,19.12606199]
[1732393601030,1.76125642,97278.0,97277.0,19.10550199]
[1732393601257,1.86512447,97278.0,97277.0,19.10550199]
[1732393601457,1.77350837,97278.0,97277.0,19.02326199]
[1732393601696,1.77350837,97278.0,97277.0,19.00270199]
[1732393601898,1.75550837,97278.0,97277.0,19.00270199]
[1732393602013,1.76450837,97278.0,97277.0,19.00270199]
[1732393602214,1.76450837,97278.0,97277.0,18.98214199]
[1732393602434,1.76450837,97278.0,97277.0,18.89990199]
[1732393602693,1.75550837,97278.0,97277.0,18.89990199]
[1732393602914,1.76450837,97278.0,97277.0,18.89990199]
[1732393603099,1.77350837,97278.0,97277.0,18.89990199]
[1732393603300,1.76450837,97278.0,97277.0,18.87934199]
[1732393603503,1.82180837,97278.0,97277.0,18.75688728]
[1732393603709,1.96019063,97278.0,97277.0,18.20115845]
[1732393603881,1.86860224,97278.0,97277.0,18.20115845]
[1732393604083,1.85960224,97278.0,97277.0,18.20115845]
[1732393604594,1.86860224,97278.0,97277.0,18.09835845]
[1732393604795,1.85960224,97278.0,97277.0,18.09835845]
[1732393605134,1.7397966,97278.0,97277.0,18.09835845]
[1732393605343,1.82892075,97278.0,97277.0,18.09835845]
[1732393605573,1.82892075,97278.0,97277.0,18.07779845]
[1732393605574,1.6824966,97278.0,97277.0,18.07779845]
[1732393605772,1.8143151,97278.0,97277.0,17.99555845]
[1732393605977,1.4914966,97278.0,97277.0,17.99555845]
[1732393606174,1.6824966,97278.0,97277.0,17.99555845]
[1732393606314,1.4824966,97278.0,97277.0,17.99555845]
[1732393606519,1.58306969,97278.0,97277.0,17.99555845]
[1732393606812,1.5903966,97278.0,97277.0,17.99555845]
[1732393607256,1.7903966,97278.0,97277.0,17.91331845]
[1732393607460,1.91386729,97278.0,97277.0,17.83107845]
[1732393607701,1.91386729,97278.0,97277.0,17.81051845]
[1732393607702,1.7993966,97278.0,97277.0,17.81051845]
[1732393607900,1.7813966,97278.0,97277.0,17.81051845]
[1732393608163,1.90593837,97278.0,97277.0,17.81051845]
[1732393608372,1.7993966,97278.0,97277.0,17.81051845]
[1732393608582,1.69884102,97278.0,97277.0,17.81051845]
[1732393608797,1.5993966,97278.0,97277.0,17.81051845]
[1732393609000,1.7993966,97278.0,97277.0,17.81051845]
[1732393609419,1.9051176,97278.0,97277.0,17.81051845]
[1732393609621,1.7993966,97278.0,97277.0,17.81051845]
[1732393609822,1.77754032,97278.0,97277.0,17.74883845]
[1732393610023,1.76854032,97278.0,97277.0,17.74883845]
[1732393610230,1.76654032,97278.0,97277.0,17.74883845]
[1732393610436,1.76854032,97278.0,97277.0,17.74883845]
[1732393611214,1.77754032,97278.0,97277.0,17.74883845]
[1732393611443,1.76854032,97278.0,97277.0,17.74883845]
[1732393611806,1.77754032,97278.0,97277.0,17.74883845]
[1732393612725,1.1375102,97278.0,97277.0,17.74883845]
[1732393612936,1.02614032,97278.0,97277.0,17.74883845]
[1732393613353,1.01714032,97278.0,97277.0,17.74883845]
[1732393613758,1.02614032,97278.0,97277.0,17.74883845]
[1732393614141,1.04914032,97278.0,97277.0,17.74883845]
[1732393614822,0.59952887,97278.0,97277.0,17.74883845]
[1732393615028,1.04914032,97278.0,97277.0,17.74883845]
[1732393616040,1.069825,97278.0,97277.0,17.74883845]
[1732393618174,1.177725,97278.0,97277.0,17.74883845]
[1732393618397,1.28470795,97278.0,97277.0,17.74883845]
[1732393619724,1.26402327,97278.0,97277.0,17.74883845]
[1732393619843,1.26402327,97278.0,97277.0,17.2352126]
[1732393620952,1.26402327,97278.0,97277.0,17.1940926]
[1732393620953,1.33760837,97278.0,97277.0,17.1940926]
[1732393621121,1.33760837,97278.0,97277.0,17.1324126]
[1732393621329,1.25845475,97278.0,97277.0,17.1118526]
[1732393621749,1.25845475,97278.0,97277.0,17.0296126]
[1732393621937,1.24945475,97278.0,97277.0,17.0296126]
[1732393622468,1.25845475,97278.0,97277.0,16.9679326]
[1732393622649,1.24945475,97278.0,97277.0,16.9268126]
[1732393623422,1.24945475,97278.0,97277.0,16.8240126]
[1732393624268,1.25845475,97278.0,97277.0,16.7828926]
[1732393624472,1.83172154,97278.0,97277.0,16.7212126]
[1732393624682,1.83372154,97278.0,97277.0,16.7212126]
[1732393625095,1.82472154,97278.0,97277.0,16.7212126]
[1732393625309,1.81572154,97278.0,97277.0,16.6800926]
[1732393625513,1.82472154,97278.0,97277.0,16.6184126]
[1732393625777,1.83372154,97278.0,97277.0,16.6184126]
[1732393626016,1.81572154,97278.0,97277.0,16.6184126]
[1732393626196,1.82472154,97278.0,97277.0,16.6184126]
[1732393626396,2.01468083,97278.0,97277.0,16.5361726]
[1732393626733,1.91081278,97278.0,97277.0,16.5156126]
[1732393626946,2.03029243,97278.0,97277.0,16.5156126]
[1732393627160,2.04263128,97278.0,97277.0,16.5156126]
[1732393627352,2.04263128,97278.0,97277.0,16.4539326]
[1732393627619,2.38038093,97278.0,97277.0,16.4128126]
[1732393627844,2.27650341,97278.0,97277.0,15.6265162]
[1732393628052,2.26750341,97278.0,97277.0,14.97551743]
[1732393628272,2.26750341,97278.0,97277.0,13.98192854]
[1732393628273,2.26941214,97278.0,97277.0,13.98192854]
[1732393628504,2.01263869,97278.0,97277.0,9.20063867]
[1732393628753,2.03806286,97278.0,97277.0,9.20063867]
[1732393628962,1.83903379,97278.0,97277.0,9.09370245]
[1732393629224,2.03903379,97278.0,97277.0,8.98708985]
[1732393629436,1.60514048,97278.0,97277.0,8.88428985]
[1732393629654,1.79782646,97278.0,97277.0,8.88428985]
[1732393629912,1.59782646,97278.0,97277.0,8.88428985]
[1732393630113,1.6207133,97278.0,97277.0,8.88428985]
[1732393630292,1.65291724,97278.0,97277.0,8.86372985]
[1732393630533,1.81249192,97278.0,97277.0,8.78148985]
[1732393630748,1.82210139,97278.0,97277.0,8.78148985]
[1732393630976,1.68480513,97278.0,97277.0,8.78148985]
[1732393631178,1.67580513,97278.0,97277.0,8.78148985]
[1732393631380,1.67580513,97278.0,97277.0,8.71980985]
[1732393631587,2.01381206,97278.0,97277.0,8.67868985]
[1732393632192,2.12168685,97278.0,97277.0,8.67868985]
[1732393632399,2.13968685,97278.0,97277.0,8.63756985]
[1732393632613,2.13968685,97278.0,97277.0,8.57588985]
[1732393633463,2.3684138,97278.0,97277.0,8.55532985]
[1732393633645,1.59650096,97278.0,97277.0,8.47308985]
[1732393634085,1.62289606,97278.0,97277.0,8.47308985]
[1732393634290,1.59650096,97278.0,97277.0,8.47308985]
[1732393634500,1.59450096,97278.0,97277.0,8.43196985]
[1732393634719,1.62289606,97278.0,97277.0,8.37028985]
[1732393634925,1.61389606,97278.0,97277.0,7.85654397]
[1732393635134,1.62289606,97278.0,97277.0,7.85654397]
[1732393635378,1.70691033,97278.0,97277.0,7.81542397]
[1732393635599,1.70691033,97278.0,97277.0,7.75374397]
[1732393635808,1.69791033,97278.0,97277.0,7.50193546]
[1732393636019,1.70691033,97278.0,97277.0,7.50193546]
[1732393636227,1.71591033,97278.0,97277.0,7.50193546]
[1732393636436,1.69791033,97278.0,97277.0,7.39913546]
[1732393636639,2.24131033,97278.0,97277.0,7.39913546]
[1732393636849,2.25931033,97278.0,97277.0,7.39913546]
[1732393637052,2.25031033,97278.0,97277.0,7.39913546]
[1732393637262,2.14243554,97278.0,97277.0,7.29478135]
[1732393637462,2.14243554,97278.0,97277.0,7.19198135]
[1732393638129,2.13343554,97278.0,97277.0,7.19198135]
[1732393638331,2.12504044,97278.0,97277.0,7.17142135]
[1732393638537,2.11604044,97278.0,97277.0,7.08918135]
[1732393638737,2.1343435,97278.0,97277.0,7.08918135]
[1732393638940,2.11604044,97278.0,97277.0,7.08918135]
[1732393639156,2.20358933,97278.0,97277.0,7.05538135]
[1732393639364,2.20295191,97278.0,97277.0,6.97314135]
[1732393639572,1.55331406,97278.0,97277.0,6.95258135]
[1732393639784,1.36231406,97278.0,97277.0,6.95258135]
[1732393639989,1.37131406,97278.0,97277.0,6.95258135]
[1732393640216,1.36231406,97278.0,97277.0,6.95258135]
[1732393640427,1.36231406,97278.0,97277.0,6.84978135]
[1732393640864,1.56231406,97278.0,97277.0,6.84978135]
[1732393641089,1.35331406,97278.0,97277.0,6.84978135]
[1732393641311,1.36231406,97278.0,97277.0,6.84978135]
[1732393641568,1.37131406,97278.0,97277.0,6.78810135]
[1732393641812,1.35331406,97278.0,97277.0,6.74698135]
[1732393642045,3.88230406,97278.0,97277.0,6.74698135]
[1732393642279,3.89330406,97278.0,97277.0,6.64317464]
[1732393642513,3.90577581,97278.0,97277.0,6.56093464]
[1732393642742,4.45817581,97278.0,97277.0,6.54037464]
[1732393642979,5.20742848,97278.0,97277.0,6.54037464]
[1732393643211,4.46717581,97278.0,97277.0,6.54037464]
[1732393643477,4.46717581,97278.0,97277.0,6.51981464]
[1732393643728,4.46717581,97278.0,97277.0,6.43757464]
[1732393643729,3.59743881,97278.0,97277.0,6.43757464]
[1732393643939,3.58843881,97278.0,97277.0,6.43757464]
[1732393644150,3.31801381,97278.0,97277.0,6.43757464]
[1732393644324,3.34953081,97278.0,97277.0,6.43757464]
[1732393644546,3.32944301,97278.0,97277.0,6.33477464]
[1732393645115,3.33844301,97278.0,97277.0,6.33477464]
[1732393645320,3.32944301,97278.0,97277.0,6.29365464]
[1732393645533,3.32044301,97278.0,97277.0,6.23197464]
[1732393645752,3.33844301,97278.0,97277.0,6.23197464]
[1732393645976,3.32944301,97278.0,97277.0,6.23197464]
[1732393646443,3.33844301,97278.0,97277.0,6.17029464]
[1732393646833,2.11672384,97278.0,97277.0,6.12917464]
[1732393647191,5.90430284,97278.0,97277.0,6.12917464]
[1732393647389,5.89731684,97278.0,97277.0,6.02637464]
[1732393648099,5.88831684,97278.0,97277.0,6.02637464]
[1732393648300,5.89731684,97278.0,97277.0,5.96469464]
[1732393648695,5.89731684,97278.0,97277.0,5.92357464]
[1732393648889,5.90631684,97278.0,97277.0,5.92357464]
[1732393649299,5.92691978,97278.0,97277.0,5.88245464]
[1732393649511,4.32712378,97278.0,97277.0,5.82077464]
[1732393649957,4.31812378,97278.0,97277.0,5.82077464]
[1732393650378,4.32712378,97278.0,97277.0,5.82077464]
[1732393650578,4.32712378,97278.0,97277.0,5.71797464]
[1732393650785,4.31812378,97278.0,97277.0,5.71797464]
[1732393650992,4.31812378,97278.0,97277.0,5.20421327]
[1732393650993,4.34806708,97278.0,97277.0,5.20421327]
[1732393651427,4.35706708,97278.0,97277.0,5.12197327]
[1732393651675,4.34806708,97278.0,97277.0,5.10141327]
[1732393652460,4.31846414,97278.0,97277.0,5.06029327]
[1732393652652,4.32746414,97278.0,97277.0,4.99861327]
[1732393652893,4.31846414,97278.0,97277.0,4.99861327]
[1732393653132,4.30652084,97278.0,97277.0,4.99861327]
[1732393653365,4.30652084,97278.0,97277.0,4.97805327]
[1732393653588,4.30652084,97278.0,97277.0,4.89581327]
[1732393653589,4.23613984,97278.0,97277.0,4.89581327]
[1732393654004,4.24513984,97278.0,97277.0,4.89581327]
[1732393654413,4.27622285,97278.0,97277.0,4.81357327]
[1732393654651,4.27622285,97278.0,97277.0,4.79301327]
[1732393655494,4.24513984,97278.0,97277.0,4.73133327]
[1732393655676,4.2450806,97278.0,97277.0,4.69021327]
[1732393655890,4.2450806,97278.0,97277.0,4.58456956]
[1732393656326,4.2450806,97278.0,97277.0,4.56400956]
[1732393656514,4.2450806,97278.0,97277.0,4.52288956]
[1732393656854,4.27616361,97278.0,97277.0,4.48176956]
[1732393657649,4.27616361,97278.0,97277.0,4.31411274]
[1732393658489,4.27616361,97278.0,97277.0,4.27299274]
[1732393658724,4.27616361,97278.0,97277.0,4.23187274]
[1732393658901,4.27616361,97278.0,97277.0,4.21131274]
[1732393659114,4.27616361,97278.0,97277.0,4.10704061]
[1732393659323,4.27616361,97278.0,97277.0,4.08648061]
[1732393659515,4.27616361,97278.0,97277.0,4.00424061]
[1732393660801,4.27616361,97278.0,97277.0,3.96312061]
[1732393661025,4.27616361,97278.0,97277.0,3.92200061]
[1732393661285,2.15674761,97278.0,97277.0,3.90144061]
[1732393661492,7.20674761,97278.0,97277.0,3.51207044]
[1732393661660,7.53967825,97278.0,97277.0,3.51207044]
[1732393662279,5.77599392,97278.0,97277.0,3.49151044]
[1732393662433,5.6467752,97278.0,97277.0,3.40927044]
[1732393662634,5.75978547,97278.0,97277.0,3.40927044]
[1732393663078,5.70401509,97278.0,97277.0,3.35407903]
[1732393663296,5.75249939,97278.0,97277.0,3.33351903]
[1732393663512,5.76149939,97278.0,97277.0,3.25127903]
[1732393663865,5.71301509,97278.0,97277.0,3.25127903]
[1732393664084,5.76148935,97278.0,97277.0,3.23965471]
[1732393664301,5.70825454,97278.0,97277.0,3.06423302]
[1732393664473,5.71079454,97278.0,97277.0,2.86019381]
[1732393664894,5.71979454,97278.0,97277.0,2.86019381]
[1732393665329,5.71979454,97278.0,97277.0,2.83963381]
[1732393665531,7.21979454,97278.0,97277.0,2.75739381]
[1732393665948,7.22879454,97278.0,97277.0,2.24355699]
[1732393666148,7.17132028,97278.0,97277.0,2.24355699]
[1732393666376,7.16232028,97278.0,97277.0,2.22299699]
[1732393666577,7.17132028,97278.0,97277.0,2.18187699]
[1732393666791,7.17132028,97278.0,97277.0,2.16131699]
[1732393666993,6.69687069,97278.0,97277.0,2.14075699]
[1732393667127,6.68787069,97278.0,97277.0,2.14075699]
[1732393667331,6.69687069,97278.0,97277.0,2.09963699]
[1732393667537,6.96348264,97278.0,97277.0,2.03795699]
[1732393667778,7.17698358,97278.0,97277.0,2.03795699]
[1732393668188,7.16798358,97278.0,97277.0,2.03795699]
[1732393668413,7.23443038,97278.0,97277.0,1.93515699]
[1732393668618,7.2257467,97278.0,97277.0,1.93515699]
[1732393668820,7.2257467,97278.0,97277.0,1.88515699]
[1732393669073,7.2347467,97278.0,97277.0,1.88515699]
[1732393669453,7.24652477,97278.0,97277.0,1.84403699]
[1732393669625,7.24652477,97278.0,97277.0,1.23895699]
[1732393669626,7.2167467,97278.0,97277.0,1.23895699]
[1732393669822,7.2347467,97278.0,97277.0,1.23895699]
[1732393670027,7.2257467,97278.0,97277.0,1.23895699]
[1732393670249,7.2167467,97278.0,97277.0,1.21839699]
[1732393670450,7.2257467,97278.0,97277.0,1.19783699]
[1732393670688,7.2347467,97278.0,97277.0,1.13615699]
[1732393670885,7.1682999,97278.0,97277.0,0.69414432]
[1732393671195,7.1772999,97278.0,97277.0,0.69414432]
[1732393671401,7.1682999,97278.0,97277.0,0.65302432]
[1732393671648,7.1592999,97278.0,97277.0,0.59134432]
[1732393671862,7.15946159,97278.0,97277.0,0.59134432]
[1732393672099,7.16846159,97278.0,97277.0,0.59134432]
[1732393672844,7.18763653,97278.0,97277.0,0.48854432]
[1732393673041,7.17863653,97278.0,97277.0,0.48854432]
[1732393673244,7.19663653,97278.0,97277.0,0.48854432]
[1732393673455,7.19663653,97278.0,97277.0,0.46798432]
[1732393674453,7.24505117,97278.0,97277.0,0.34464332]
[1732393674649,1.28532045,97267.0,97249.0,0.0765578]
[1732393674854,7.42287459,97267.0,97249.0,0.0765578]